fUSD/lending_fUSD_20260404
["ID","MTS","AMOUNT","RATE_DAILY","PERIOD"]
[419695448,1775305841577,-258.0,0.00015797,2]
[419695449,1775305841589,-223.0,0.00015819,2]
[419695450,1775305841600,-1000.0,0.00015824,2]
[419695451,1775305841611,-185.876,0.0001586,2]
[419695452,1775305841623,-2662.295,0.0001586,2]
[419695453,1775305841636,-200.0,0.00015871,2]
[419695454,1775305841649,-200.0,0.00015872,2]
[419695455,1775305841661,-2818.44,0.00015895,2]
[419695456,1775305841672,-150.0,0.00015895,2]
[419695457,1775305841684,-1000.0,0.000159,2]
[419695458,1775305841695,-169.20655523,0.000159,3]
[419695459,1775305841706,-156.0,0.000159,2]
[419695460,1775305841717,-10000.0,0.000159,2]
[419695461,1775305841729,-413.6458839,0.000159,2]
[419695462,1775305841740,-2911.0,0.000159,2]
[419695463,1775305841751,-5000.0,0.000159,2]
[419695464,1775305841762,-228.28750458,0.000159,2]
[419695465,1775305841773,-186.6842612,0.000159,2]
[419695466,1775305841785,-50913.36439003,0.000159,2]
[419695467,1775305841796,-634.59222786,0.000159,2]
[419695468,1775305841808,-3209.20322967,0.000159,3]
[419695469,1775305841820,-387.54543301,0.000159,2]
[419695470,1775305841831,-1000.0,0.00015904,2]
[419695471,1775305841842,-1000.0,0.0001592,2]
[419695472,1775305841854,-1000.0,0.0001594,2]
[419695473,1775305841865,-500.0,0.00015973,2]
[419695474,1775305841876,-1000.0,0.00015982,2]
[419695475,1775305841886,-218.16073575,0.00015984,2]
[419695476,1775305841897,-252.03470027,0.00015984,2]
[419695477,1775305841909,-175.51949596,0.00015984,2]
[419695478,1775305841920,-162.50875547,0.00015984,2]
[419695479,1775305841931,-256.02695723,0.00015984,2]
[419695480,1775305841942,-281.49417956,0.00015984,2]
[419695481,1775305841953,-471.79722539,0.0001599,2]
[419695482,1775305841964,-471.79722539,0.0001599,2]
[419695483,1775305841975,-471.79722539,0.0001599,2]
[419695484,1775305841987,-151.0,0.00015997,2]
[419695485,1775305841997,-47700.1289958,0.00015998,2]
[419695486,1775305842007,-176231.0453745,0.00015998,2]
[419695487,1775305842018,-10239.8073175,0.00015998,2]
[419695488,1775305842029,-1297.89044282,0.00015999,2]
[419695489,1775305842040,-666.0,0.00015999,2]
[419695490,1775305842051,-666.0,0.00015999,2]
[419695491,1775305842061,-670.84839751,0.00015999,2]
[419695492,1775305842072,-365.21585211,0.00015999,2]
[419695493,1775305842083,-370.0,0.00015999,2]
[419695494,1775305842093,-500.0,0.00015999,2]
[419695495,1775305842103,-500.0,0.00015999,2]
[419695496,1775305842114,-500.0,0.00015999,2]
[419695497,1775305842124,-500.0,0.00015999,2]
[419695498,1775305842135,-500.0,0.00015999,2]
[419695499,1775305842146,-500.0,0.00015999,2]
[419695500,1775305842156,-500.0,0.00015999,2]
[419695501,1775305842167,-500.0,0.00015999,2]
[419695502,1775305842177,-500.0,0.00015999,2]
[419695505,1775305842188,-500.0,0.00015999,2]
[419695506,1775305842199,-500.0,0.00015999,2]
[419695507,1775305842210,-500.0,0.00015999,2]
[419695508,1775305842221,-500.0,0.00015999,2]
[419695509,1775305842232,-500.0,0.00015999,2]
[419695510,1775305842242,-500.0,0.00015999,2]
[419695511,1775305842253,-500.0,0.00015999,2]
[419695512,1775305842264,-500.0,0.00015999,2]
[419695513,1775305842275,-500.0,0.00015999,2]
[419695514,1775305842285,-500.0,0.00015999,2]
[419695515,1775305842296,-500.0,0.00015999,2]
[419695516,1775305842307,-500.0,0.00015999,2]
[419695517,1775305842318,-500.0,0.00015999,2]
[419695518,1775305842329,-500.0,0.00015999,2]
[419695520,1775305842340,-500.0,0.00015999,2]
[419695522,1775305842350,-500.0,0.00015999,2]
[419695524,1775305842361,-500.0,0.00015999,2]
[419695526,1775305842372,-500.0,0.00015999,2]
[419695527,1775305842383,-500.0,0.00015999,2]
[419695528,1775305842394,-500.0,0.00015999,2]
[419695529,1775305842405,-500.0,0.00015999,2]
[419695530,1775305842417,-500.0,0.00015999,2]
[419695531,1775305842427,-500.0,0.00015999,2]
[419695532,1775305842439,-500.0,0.00015999,2]
[419695533,1775305842450,-500.0,0.00015999,2]
[419695534,1775305842462,-500.0,0.00015999,2]
[419695535,1775305842473,-500.0,0.00015999,2]
[419695536,1775305842483,-500.0,0.00015999,2]
[419695537,1775305842494,-500.0,0.00015999,2]
[419695538,1775305842504,-500.0,0.00015999,2]
[419695539,1775305842514,-500.0,0.00015999,2]
[419695540,1775305842524,-500.0,0.00015999,2]
[419695541,1775305842535,-500.0,0.00015999,2]
[419695542,1775305842545,-500.0,0.00015999,2]
[419695543,1775305842556,-500.0,0.00015999,2]
[419695544,1775305842566,-500.0,0.00015999,2]
[419695545,1775305842579,-500.0,0.00015999,2]
[419695546,1775305842589,-500.0,0.00015999,2]
[419695547,1775305842600,-500.0,0.00015999,2]
[419695549,1775305842610,-500.0,0.00015999,2]
[419695551,1775305842620,-500.0,0.00015999,2]
[419695553,1775305842631,-500.0,0.00015999,2]
[419695554,1775305842642,-520.24272845,0.00015999,2]
[419695555,1775305842654,-1000.0,0.00015999,2]
[419695556,1775305842666,-500.0,0.00015999,2]
[419695557,1775305842676,-500.0,0.00015999,2]
[419695558,1775305842687,-500.0,0.00015999,2]
[419695559,1775305842698,-500.0,0.00015999,2]
[419695560,1775305842711,-500.0,0.00015999,2]
[419695561,1775305842721,-500.0,0.00015999,2]
[419695562,1775305842733,-500.0,0.00015999,2]
[419695563,1775305842743,-186.15865542,0.00015999,2]
[419695564,1775305842755,-500.0,0.00015999,2]
[419695565,1775305842765,-500.0,0.00015999,2]
[419695566,1775305842776,-159.85186598,0.00015999,2]
[419695567,1775305842788,-500.0,0.00015999,2]
[419695568,1775305842799,-500.0,0.00015999,2]
[419695569,1775305842809,-500.0,0.00015999,2]
[419695570,1775305842821,-500.0,0.00015999,2]
[419695571,1775305842833,-154.22222828,0.00015999,2]
[419695572,1775305842845,-500.0,0.00015999,2]
[419695573,1775305842856,-240.04760121,0.00015999,2]
[419695574,1775305842868,-500.0,0.00015999,2]
[419695575,1775305842879,-500.0,0.00015999,2]
[419695576,1775305842891,-283.69746953,0.00015999,2]
[419695577,1775305842903,-232.50492352,0.00015999,2]
[419695578,1775305842913,-282.45616885,0.00015999,2]
[419695579,1775305842924,-239.0441826,0.00015999,2]
[419695580,1775305842935,-500.0,0.00015999,2]
[419695581,1775305842946,-500.0,0.00015999,2]
[419695582,1775305842956,-500.0,0.00015999,2]
[419695583,1775305842967,-500.0,0.00015999,2]
[419695584,1775305842978,-500.0,0.00015999,2]
[419695585,1775305842988,-500.0,0.00015999,2]
[419695586,1775305842998,-500.0,0.00015999,2]
[419695587,1775305843009,-274.57696092,0.00015999,2]
[419695588,1775305843020,-500.0,0.00015999,2]
[419695589,1775305843031,-500.0,0.00015999,2]
[419695591,1775305843042,-600.0,0.00015999,2]
[419695593,1775305843053,-4294.0,0.00016,5]
[419695595,1775305843064,-3429.0,0.00016,5]
[419695597,1775305843074,-805088.55164602,0.00016,2]
[419695600,1775305843091,-2683.48,0.00016,2]
[419695622,1775305843474,-1347.0,0.00015653,2]
[419695624,1775305843485,-10163.40545382,0.00016,2]
[419695626,1775305843499,-5080.33423483,0.00016,2]
[419695656,1775305845908,-6487.99999678,0.00016,2]
[419695657,1775305845921,-4101.59999995,0.00016,2]
[419695665,1775306624523,384.0,0.0001265,10]
[419695678,1775307037722,-250.0,0.00013,2]
[419695679,1775307037733,-345.0,0.00013,2]
[419695680,1775307037743,-250.0,0.00013055,2]
[419695681,1775307037752,-503.0,0.00013111,2]
[419695682,1775307037762,-300.0,0.00013704,2]
[419695683,1775307037771,-1273.16893894,0.00013705,2]
[419695684,1775307037783,-1665.44142218,0.00013705,2]
[419695685,1775307037802,-20970.19963888,0.00013705,2]
[419695686,1775307037811,-151.0,0.00013781,2]
[419695687,1775307037820,-200.0,0.00013793,2]
[419695688,1775307037829,-5146.77138359,0.00013919,2]
[419695689,1775307037880,-154.86861641,0.00013919,2]
[419695690,1775307037889,-500.0,0.00013927,2]
[419695691,1775307037899,-166.66,0.00013982,2]
[419695692,1775307037908,-2500.0,0.00014122,2]
[419695693,1775307037917,-228.28750458,0.00014176,2]
[419695694,1775307037927,-186.6842612,0.00014176,2]
[419695695,1775307037936,-1971.71837029,0.00014221,2]
[419695696,1775307037946,-24473.99455482,0.00014221,2]
[419695697,1775307037955,-500.0,0.00014221,2]
[419695698,1775307037965,-166.66,0.00014276,2]
[419695699,1775307037974,-195.0,0.000143,2]
[419695700,1775307037983,-195.0,0.000143,2]
[419695701,1775307037992,-300.0,0.000143,2]
[419695702,1775307038002,-300.0,0.000143,2]
[419695703,1775307038011,-300.0,0.000143,2]
[419695704,1775307038022,-300.0,0.000143,2]
[419695705,1775307038031,-2500.0,0.000143,2]
[419695706,1775307038041,-1689.38297199,0.000143,2]
[419695707,1775307038050,-300.0,0.000143,2]
[419695708,1775307038059,-2500.0,0.000143,2]
[419695709,1775307038069,-2500.0,0.000143,2]
[419695710,1775307038079,-600.0,0.000143,2]
[419695711,1775307038088,-250.0,0.000143,2]
[419695713,1775307038098,-500.0,0.00014356,2]
[419695714,1775307038107,-900.0,0.00014356,2]
[419695715,1775307038116,-3941.66,0.00014459,2]
[419695716,1775307038126,-10271.26,0.00014463,2]
[419695717,1775307038135,-1852.42,0.00014498,2]
[419695718,1775307038145,-166.66,0.0001457,2]
[419695719,1775307038154,-611.05,0.00014811,2]
[419695720,1775307038164,-1049.14,0.00014851,2]
[419695721,1775307038173,-166.66,0.00014865,2]
[419695722,1775307038183,-1000.0,0.00014932,2]
[419695723,1775307038192,-420.0,0.00015018,2]
[419695725,1775307038201,-500.0,0.00015031,2]
[419695726,1775307038211,-1842.89372066,0.00015052,2]
[419695728,1775307039987,-606.6000014,0.00015052,2]
[419695729,1775307040001,-618.03445751,0.00015052,2]
[419695730,1775307040043,-6667.26990554,0.00015052,2]
[419695731,1775307040098,-849.51188492,0.00015052,2]
[419695732,1775307040149,-5409.56002997,0.00015052,2]
[419695733,1775307040161,-166.66,0.00015159,2]
[419695734,1775307040173,-166.67,0.00015177,2]
[419695735,1775307040192,-1266.82,0.0001531,2]
[419695736,1775307040205,-166.66,0.00015453,2]
[419695737,1775307040216,-394.05,0.00015642,2]
[419695738,1775307040229,-500.0,0.00015726,2]
[419695739,1775307040240,-900.0,0.00015726,2]
[419695740,1775307040253,-150.0,0.00015736,2]
[419695741,1775307040275,-1000.0,0.00015738,2]
[419695742,1775307040294,-1000.0,0.00015747,2]
[419695743,1775307040307,-1000.0,0.00015838,2]
[419695744,1775307040321,-2000.0,0.0001584,2]
[419695745,1775307040336,-2000.0,0.0001584,2]
[419695746,1775307040349,-2000.0,0.0001584,2]
[419695747,1775307040364,-1347.0,0.0001586,2]
[419695748,1775307040377,-1263.0,0.0001586,2]
[419695749,1775307040391,-6019.0,0.0001586,2]
[419695750,1775307040405,-2470.0,0.0001586,2]
[419695751,1775307040419,-925.0,0.0001586,2]
[419695752,1775307040432,-223.0,0.00015864,2]
[419695753,1775307040445,-200.0,0.00015871,2]
[419695754,1775307040457,-200.0,0.00015872,2]
[419695755,1775307040470,-1000.0,0.00015873,2]
[419695756,1775307040483,-2662.295,0.00015877,2]
[419695757,1775307040495,-185.876,0.00015877,2]
[419695758,1775307040511,-500.0,0.0001589,2]
[419695759,1775307040532,-500.0,0.0001589,2]
[419695760,1775307040551,-2000.0,0.0001589,2]
[419695761,1775307040564,-1000.0,0.00015894,2]
[419695762,1775307040577,-500.0,0.00015899,2]
[419695763,1775307040589,-500.0,0.00015899,2]
[419695764,1775307040602,-500.0,0.00015899,2]
[419695765,1775307040614,-500.0,0.00015899,2]
[419695766,1775307040626,-500.0,0.00015899,2]
[419695767,1775307040641,-500.0,0.00015899,2]
[419695768,1775307040653,-500.0,0.00015899,2]
[419695769,1775307040666,-500.0,0.00015899,2]
[419695770,1775307040678,-500.0,0.00015899,2]
[419695771,1775307040690,-500.0,0.00015899,2]
[419695772,1775307040702,-500.0,0.00015899,2]
[419695773,1775307040714,-500.0,0.00015899,2]
[419695774,1775307040728,-500.0,0.00015899,2]
[419695775,1775307040741,-500.0,0.00015899,2]
[419695776,1775307040752,-500.0,0.00015899,2]
[419695777,1775307040764,-500.0,0.00015899,2]
[419695778,1775307040776,-500.0,0.00015899,2]
[419695779,1775307040790,-500.0,0.00015899,2]
[419695780,1775307040803,-500.0,0.00015899,2]
[419695781,1775307040816,-500.0,0.00015899,2]
[419695782,1775307040829,-500.0,0.00015899,2]
[419695783,1775307040843,-548.46935145,0.00015899,2]
[419695784,1775307040855,-500.0,0.00015899,2]
[419695785,1775307040867,-500.0,0.00015899,2]
[419695786,1775307040879,-500.0,0.00015899,2]
[419695787,1775307040891,-500.0,0.00015899,2]
[419695788,1775307040903,-500.0,0.00015899,2]
[419695789,1775307040914,-500.0,0.00015899,2]
[419695790,1775307040926,-500.0,0.00015899,2]
[419695791,1775307040938,-500.0,0.00015899,2]
[419695792,1775307040950,-10000.0,0.000159,2]
[419695793,1775307040962,-34970.15196763,0.000159,3]
[419695795,1775307040974,-25559.75281378,0.000159,2]
[419695797,1775307040985,-3378.4097849,0.000159,3]
[419695799,1775307040996,-5000.0,0.000159,2]
[419695802,1775307041008,-413.6458839,0.000159,2]
[419695804,1775307041020,-387.54543301,0.000159,2]
[419695806,1775307041032,-634.59222786,0.000159,2]
[419695808,1775307041043,-2911.0,0.000159,2]
[419695811,1775307041055,-1000.0,0.00015906,2]
[419695813,1775307041066,-16403.4,0.00015942,2]
[419695815,1775307041079,-26522.24355216,0.00015952,2]
[419695817,1775307041090,-1297.89044282,0.00015973,2]
[419695820,1775307041102,-150.78052702,0.00015984,2]
[419695822,1775307041114,-347.82177579,0.00015984,2]
[419695824,1775307041126,-226.17725489,0.00015984,2]
[419695826,1775307041138,-206.10928316,0.00015984,2]
[419695828,1775307041149,-197.73789796,0.00015984,2]
[419695831,1775307041161,-202.23172773,0.00015984,2]
[419695833,1775307041172,-16403.4,0.00015989,2]
[419695835,1775307041184,-471.79722539,0.0001599,2]
[419695837,1775307041195,-471.79722539,0.0001599,2]
[419695840,1775307041206,-471.79722539,0.0001599,2]
[419695842,1775307041218,-151.0,0.00015997,2]
[419695844,1775307041229,-500.0,0.00015997,2]
[419695846,1775307041241,-500.0,0.00015997,2]
[419695848,1775307041252,-500.0,0.00015998,2]
[419695851,1775307041264,-666.0,0.00015999,2]
[419695853,1775307041276,-666.0,0.00015999,2]
[419695855,1775307041287,-183964.0288009,0.00015999,2]
[419695857,1775307041299,-872.7151568,0.00015999,2]
[419695860,1775307041310,-2263.4819862,0.00015999,2]
[419695862,1775307041322,-155.0,0.00015999,2]
[419695864,1775307041334,-500.0,0.00015999,2]
[419695866,1775307041345,-500.0,0.00015999,2]
[419695868,1775307041357,-500.0,0.00015999,2]
[419695870,1775307041369,-500.0,0.00015999,2]
[419695871,1775307041380,-500.0,0.00015999,2]
[419695872,1775307041392,-500.0,0.00015999,2]
[419695873,1775307041410,-500.0,0.00015999,2]
[419695874,1775307041424,-500.0,0.00015999,2]
[419695875,1775307041437,-500.0,0.00015999,2]
[419695876,1775307041452,-500.0,0.00015999,2]
[419695877,1775307041465,-500.0,0.00015999,2]
[419695878,1775307041478,-500.0,0.00015999,2]
[419695879,1775307041492,-500.0,0.00015999,2]
[419695880,1775307041506,-500.0,0.00015999,2]
[419695881,1775307041519,-500.0,0.00015999,2]
[419695882,1775307041531,-500.0,0.00015999,2]
[419695883,1775307041544,-500.0,0.00015999,2]
[419695884,1775307041558,-500.0,0.00015999,2]
[419695885,1775307041570,-500.0,0.00015999,2]
[419695886,1775307041584,-500.0,0.00015999,2]
[419695887,1775307041596,-500.0,0.00015999,2]
[419695888,1775307041608,-500.0,0.00015999,2]
[419695889,1775307041620,-500.0,0.00015999,2]
[419695890,1775307041632,-500.0,0.00015999,2]
[419695891,1775307041645,-500.0,0.00015999,2]
[419695892,1775307041658,-500.0,0.00015999,2]
[419695893,1775307041671,-500.0,0.00015999,2]
[419695894,1775307041684,-500.0,0.00015999,2]
[419695895,1775307041697,-500.0,0.00015999,2]
[419695896,1775307041709,-500.0,0.00015999,2]
[419695897,1775307041721,-500.0,0.00015999,2]
[419695898,1775307041733,-500.0,0.00015999,2]
[419695899,1775307041747,-500.0,0.00015999,2]
[419695900,1775307041760,-500.0,0.00015999,2]
[419695901,1775307041772,-500.0,0.00015999,2]
[419695902,1775307041783,-500.0,0.00015999,2]
[419695903,1775307041796,-500.0,0.00015999,2]
[419695904,1775307041809,-500.0,0.00015999,2]
[419695905,1775307041823,-500.0,0.00015999,2]
[419695906,1775307041835,-500.0,0.00015999,2]
[419695907,1775307041847,-500.0,0.00015999,2]
[419695908,1775307041858,-500.0,0.00015999,2]
[419695909,1775307041870,-500.0,0.00015999,2]
[419695910,1775307041881,-500.0,0.00015999,2]
[419695911,1775307041892,-500.0,0.00015999,2]
[419695912,1775307041904,-500.0,0.00015999,2]
[419695913,1775307041915,-500.0,0.00015999,2]
[419695914,1775307041927,-500.0,0.00015999,2]
[419695915,1775307041938,-520.24272845,0.00015999,2]
[419695916,1775307041949,-500.0,0.00015999,2]
[419695917,1775307041961,-500.0,0.00015999,2]
[419695918,1775307041973,-500.0,0.00015999,2]
[419695919,1775307041985,-500.0,0.00015999,2]
[419695920,1775307041997,-186.15865542,0.00015999,2]
[419695921,1775307042009,-10227.0491071,0.00015999,2]
[419695922,1775307042020,-500.0,0.00015999,2]
[419695923,1775307042032,-239.0441826,0.00015999,2]
[419695924,1775307042043,-500.0,0.00015999,2]
[419695925,1775307042055,-500.0,0.00015999,2]
[419695926,1775307042066,-500.0,0.00015999,2]
[419695927,1775307042078,-500.0,0.00015999,2]
[419695928,1775307042089,-500.0,0.00015999,2]
[419695929,1775307042101,-500.0,0.00015999,2]
[419695930,1775307042112,-500.0,0.00015999,2]
[419695931,1775307042123,-500.0,0.00015999,2]
[419695932,1775307042134,-274.57696092,0.00015999,2]
[419695933,1775307042145,-500.0,0.00015999,2]
[419695934,1775307042156,-500.0,0.00015999,2]
[419695935,1775307042168,-500.0,0.00015999,2]
[419695936,1775307042179,-240.04760121,0.00015999,2]
[419695937,1775307042191,-300.0,0.00015999,2]
[419695938,1775307042202,-500.0,0.00015999,2]
[419695939,1775307042213,-500.0,0.00015999,2]
[419695940,1775307042224,-514.07409426,0.00015999,2]
[419695941,1775307042235,-500.0,0.00015999,2]
[419695942,1775307042247,-500.0,0.00015999,2]
[419695943,1775307042258,-500.0,0.00015999,2]
[419695944,1775307042269,-500.0,0.00015999,2]
[419695945,1775307042281,-500.0,0.00015999,2]
[419695946,1775307042293,-500.0,0.00015999,2]
[419695947,1775307042305,-500.0,0.00015999,2]
[419695948,1775307042318,-500.0,0.00015999,2]
[419695949,1775307042329,-283.69746953,0.00015999,2]
[419695950,1775307042341,-232.50492352,0.00015999,2]
[419695951,1775307042352,-282.45616885,0.00015999,2]
[419695953,1775307042363,-4288.0,0.00016,5]
[419695955,1775307042374,-3430.0,0.00016,5]
[419695957,1775307042385,-733704.14733095,0.00016,2]
[419695961,1775307042401,-661.17995,0.00016,2]
[419695964,1775307042414,-802.13029927,0.00016,2]
[419695973,1775307042616,-48831.96705997,0.00016,2]
[419695976,1775307042629,-20153.67777399,0.00016,2]
[419695978,1775307042642,-3300.0,0.00016,2]
[419695986,1775307045875,-17198.33181195,0.00016,2]
[419695987,1775307045887,-1046.3489073,0.00016,2]
[419695988,1775307045899,-89656.35274261,0.00016,2]
[419695993,1775307050214,-2640.0,0.00016,2]
[419695997,1775307172201,-160.37705361,0.00012999,2]
[419695998,1775307172227,-239.62294639,0.00012999,2]
[419696019,1775308231854,-168.0,0.00012999,3]
[419696020,1775308231864,-150.0,0.00012999,2]
[419696021,1775308231876,-345.0,0.00012999,2]
[419696022,1775308231887,-250.0,0.00013,2]
[419696023,1775308231898,-300.0,0.00013107,2]
[419696024,1775308231909,-348.68844235,0.00013108,2]
[419696025,1775308232014,-13162.42675648,0.00013108,2]
[419696026,1775308232027,-290.0,0.00013108,2]
[419696027,1775308232038,-500.0,0.00013111,2]
[419696028,1775308232049,-1500.0,0.00013742,2]
[419696029,1775308232060,-151.0,0.00013744,2]
[419696030,1775308232070,-150.0,0.00014011,2]
[419696031,1775308232080,-42547.09392586,0.00014012,2]
[419696051,1775308240402,-4845.28,0.00014012,2]
[419696052,1775308240433,-5863.86177414,0.00014012,2]
[419696053,1775308240442,-2826.5588,0.00014022,2]
[419696054,1775308240452,-2500.0,0.00014022,2]
[419696055,1775308240461,-160.4,0.00014041,2]
[419696056,1775308240471,-500.0,0.00014121,2]
[419696057,1775308240480,-340960.2306,0.00014122,2]
[419696058,1775308240490,-1000.0,0.00014122,2]
[419696059,1775308240499,-150.0,0.00014183,2]
[419696060,1775308240508,-500.0,0.00014221,2]
[419696061,1775308240519,-300.0,0.00014299,2]
[419696062,1775308240528,-300.0,0.00014299,2]
[419696063,1775308240538,-2500.0,0.00014299,2]
[419696064,1775308240547,-2500.0,0.00014299,2]
[419696065,1775308240556,-2500.0,0.00014299,2]
[419696066,1775308240565,-1950.0,0.00014299,2]
[419696067,1775308240575,-250.0,0.00014299,2]
[419696068,1775308240584,-193.0,0.00014299,2]
[419696069,1775308240594,-250.0,0.00014299,2]
[419696070,1775308240603,-500.0,0.00014356,2]
[419696071,1775308240612,-900.0,0.00014356,2]
[419696072,1775308240622,-420.0,0.00014372,2]
[419696073,1775308240631,-150.0,0.000144,2]
[419696074,1775308240640,-150.0,0.000144,2]
[419696075,1775308240650,-150.0,0.000144,2]
[419696076,1775308240659,-150.0,0.000144,2]
[419696077,1775308240669,-150.0,0.000144,2]
[419696078,1775308240679,-150.0,0.000144,2]
[419696079,1775308240689,-150.0,0.000144,2]
[419696080,1775308240700,-150.0,0.000144,2]
[419696081,1775308240710,-150.0,0.000144,2]
[419696082,1775308240720,-418.79,0.00014695,2]
[419696083,1775308240732,-2000.0,0.00014715,2]
[419696084,1775308240742,-195.11,0.0001477,2]
[419696085,1775308240753,-3240.0,0.00014895,2]
[419696086,1775308240763,-202.7,0.00015344,2]
[419696087,1775308240773,-896.0,0.0001547,2]
[419696088,1775308240782,-896.0,0.00015482,2]
[419696089,1775308240791,-896.0,0.00015552,2]
[419696090,1775308240801,-896.0,0.0001566,2]
[419696091,1775308240810,-896.0,0.00015696,2]
[419696092,1775308240820,-200.0,0.000157,2]
[419696093,1775308240830,-500.0,0.00015726,2]
[419696094,1775308240839,-900.0,0.00015726,2]
[419696095,1775308240848,-896.0,0.00015735,2]
[419696096,1775308240858,-896.0,0.00015737,2]
[419696097,1775308240867,-587.0,0.0001576,2]
[419696098,1775308240877,-1000.0,0.0001577,2]
[419696099,1775308240886,-896.0,0.00015772,2]
[419696100,1775308240896,-223.0,0.00015783,2]
[419696101,1775308240905,-1000.0,0.00015792,2]
[419696102,1775308240915,-2259.03257639,0.00015807,2]
[419696103,1775308240924,-896.0,0.00015828,2]
[419696104,1775308240933,-896.0,0.0001585,2]
[419696105,1775308240942,-1347.0,0.0001586,2]
[419696106,1775308240952,-1263.0,0.0001586,2]
[419696107,1775308240962,-2470.0,0.0001586,2]
[419696108,1775308240972,-6019.0,0.0001586,2]
[419696109,1775308240981,-500.0,0.00015871,2]
[419696110,1775308240990,-200.0,0.00015871,2]
[419696111,1775308240999,-896.0,0.00015872,2]
[419696112,1775308241009,-2842.557,0.00015872,2]
[419696113,1775308241018,-185.876,0.00015872,2]
[419696114,1775308241028,-500.0,0.00015872,2]
[419696115,1775308241037,-200.0,0.00015872,2]
[419696116,1775308241047,-500.0,0.0001589,2]
[419696117,1775308241057,-500.0,0.00015899,2]
[419696118,1775308241067,-500.0,0.00015899,2]
[419696119,1775308241076,-68827.0416064,0.00015899,2]
[419696120,1775308241086,-500.0,0.00015899,2]
[419696121,1775308241095,-10000.0,0.000159,2]
[419696122,1775308241104,-5000.0,0.000159,2]
[419696123,1775308241114,-3378.4097849,0.000159,3]
[419696124,1775308241123,-413.6458839,0.000159,2]
[419696125,1775308241133,-34970.15196763,0.000159,3]
[419696126,1775308241143,-634.59222786,0.000159,2]
[419696127,1775308241153,-25559.75281378,0.000159,2]
[419696128,1775308241162,-387.54543301,0.000159,2]
[419696129,1775308241173,-896.0,0.00015908,2]
[419696130,1775308241184,-896.0,0.00015911,2]
[419696131,1775308241194,-168.0,0.00015917,2]
[419696132,1775308241205,-1000.0,0.00015938,2]
[419696133,1775308241215,-26522.24355216,0.00015952,2]
[419696134,1775308241225,-151.0,0.00015973,2]
[419696135,1775308241234,-151.0,0.00015973,2]
[419696136,1775308241243,-151.0,0.00015973,2]
[419696137,1775308241252,-267.50376984,0.00015973,2]
[419696138,1775308241262,-1297.89044282,0.00015973,2]
[419696139,1775308241271,-896.0,0.00015981,2]
[419696140,1775308241282,-1000.0,0.00015981,2]
[419696141,1775308241291,-162.41985283,0.00015984,2]
[419696142,1775308241301,-697.82529663,0.00015984,2]
[419696143,1775308241311,-575.84957097,0.00015984,2]
[419696144,1775308241320,-1071.3892083,0.00015984,2]
[419696145,1775308241329,-594.63851471,0.00015984,2]
[419696146,1775308241339,-306.81854916,0.00015984,2]
[419696147,1775308241348,-231.98869385,0.00015984,2]
[419696148,1775308241358,-197.70276012,0.00015984,2]
[419696149,1775308241367,-471.79722539,0.0001599,2]
[419696150,1775308241377,-471.79722539,0.0001599,2]